Cogmind - Beta 13 @@@ ROGUE MODE // 2024.04.01 @ 19:37:26 Player: Neurotypical Result: Destroyed by D-53 Grenadier with Mini Grenade Launcher Performance ------------- Evolutions (0) 0 Regions Visited (2) 400 Robots Destroyed (17) 85 Value Destroyed (394) 394 Prototype IDs (0) 0 Alien Tech Used (0) 0 Bonus (0) 0 TOTAL SCORE: 879 Bonus ------- None Cogmind --------- Core Integrity 0/250 Matter 230/300 Energy 98/100 System Corruption 4% Temperature Cool (1) Movement Walking (120) Location -10/Mines Parts ------- > --- POWER (1) -------- (None) > --- PROPULSION (2) --- Aluminum Leg > --- UTILITY (2) ------ Small Storage Unit > --- WEAPON (2) ------- Light Assault Rifle Katana > --- INVENTORY (8) ---- Light Ion Engine Visual Processing Unit Improved Terrain Scanner Light Assault Rifle Assault Cannon Improved Datajack Peak State ------------ > --- POWER ------------ Ion Engine > --- PROPULSION ------- Aluminum Leg Aluminum Leg > --- UTILITY ---------- Small Storage Unit Hardlight Generator > --- WEAPON ----------- Light Assault Rifle Rocket Launcher > --- INVENTORY -------- Light Ion Engine Huge Storage Unit Visual Processing Unit Improved Terrain Scanner Light Assault Rifle Assault Cannon Improved Datajack [Rating: 11] Favorites ----------- Power Light Ion Engine Engine Light Ion Engine Propulsion Aluminum Leg Leg Aluminum Leg Utility Small Storage Unit Device Sensor Array Storage Small Storage Unit Weapon Grenade Launcher Ballistic Gun Assault Rifle Launcher Grenade Launcher Slashing Weapon Katana Special Melee Weapon Datajack Build | -11 -10 -10 ------- Run | Yrd Mat Min Slots Evolved . | . . . Power . | . . . Propulsion . | . . . Utility . | . . . Weapon . | . . . Parts Attached 25 | 6 14 5 Power 3 | 1 2 . Engine 3 | 1 2 . Core . | . . . Reactor . | . . . Propulsion 6 | 2 3 1 Treads . | . . . Leg 6 | 2 3 1 Wheel . | . . . Hover . | . . . Flight . | . . . Utility 6 | 1 4 1 Device 3 | . 2 1 Storage 3 | 1 2 . Processor . | . . . Hackware . | . . . Protection . | . . . Artifact . | . . . Weapon 10 | 2 5 3 Energy Gun . | . . . Energy Cannon . | . . . Ballistic Gun 4 | 2 2 . Ballistic Cannon . | . . . Launcher 4 | . 2 2 Special Weapon . | . . . Impact Weapon . | . . . Slashing Weapon 1 | . . 1 Piercing Weapon . | . . . Special Melee Weapon 1 | . 1 . Unidentified Prototypes . | . . . Parts Lost 6 | . 1 5 Power 1 | . . 1 Propulsion 3 | . 1 2 Utility 1 | . . 1 Weapon 1 | . . 1 Highest Loss Streak 5 | . 1 5 To Critical Strikes . | . . . Average Slot Usage (%) 95 | . 95 95 Engine 13 | . 14 13 Leg 27 | . 27 26 Device 11 | . 10 13 Storage 14 | . 14 14 Ballistic Gun 14 | . 14 14 Launcher 12 | . 12 12 Naked Turns . | . . . Heaviest Build 20 | 11 15 20 Greatest Support 20 | 20 20 20 Greatest Overweight (x) 1 | . 1 1 Average Overweight (x) . | . . . Largest Inventory Capacity 25 | 8 25 8 Average Capacity 7 | 7 8 8 Most Carried 8 | 4 8 8 Average Carried 6 | 1 6 7 Final Capacity 8 | 8 8 8 Final Carried 7 | 2 7 6 Class Distribution -------------------- 100% | Mutant Dominant Class ---------------- Mutant | -10/Materials Mutant | -10/Mines Resources | -11 -10 -10 ----------- Run | Yrd Mat Min Matter Collected 605 | 232 302 71 Remotely . | . . . Salvage Created 382 | . 305 77 Parts 25 | . 21 4 Haulers Intercepted . | . . . Recyclers Shooed 2 | 1 1 . Parts Field Recycled . | . . . Retrieved Matter . | . . . Parts Self-Destructed . | . . . Prevented . | . . . Kills | -11 -10 -10 ------- Run | Yrd Mat Min Combat Hostiles Destroyed 21 | . 11 10 Guns 3 | . 2 1 AOE 18 | . 9 9 Classes Destroyed 5 | . 3 2 Tunneler 1 | . . 1 Watcher 2 | . 2 . Swarmer 6 | . 3 3 Grunt 8 | . 8 . Assembled 7 | . . 7 Best Kill Streak 5 | . 5 4 Combat Bots Only 5 | . 5 4 Max Kills in Single Turn 3 | . 2 3 Gunslinging . | . . . Exploded 3 | . 2 3 Melee . | . . . Uniques/NPCs Destroyed . | . . . Combat | -11 -10 -10 -------- Run | Yrd Mat Min Hostile Shots Fired 80 | . 42 38 Missed 20 | . 11 9 Damage Taken 1028 | . 460 568 Core 271 | . 90 181 Absorbed by Shields 28 | . . 28 Regen/Repaired (Parts) 46 | . 46 . Core Remaining (%) 100 | 100 . . Volleys Fired 36 | 2 25 9 Largest 2 | 1 2 2 Hottest 53 | 20 50 53 Shots Fired 62 | 2 46 14 Gun 46 | 2 35 9 Cannon . | . . . Launcher 16 | . 11 5 Special . | . . . Kinetic 46 | 2 35 9 Thermal . | . . . Explosive 16 | . 11 5 Electromagnetic . | . . . Robot Hit Streak 13 | 1 13 2 Robot Miss Streak 4 | 1 4 4 Penetration Max . | . . . Secondary Targets . | . . . Shots Hit Robots 41 | 1 37 3 Core Hits 42 | . 24 18 Critical Kills . | . . . Critical Parts Destroyed . | . . . Critical Strikes . | . . . Melee Attacks 5 | . 5 . Impact . | . . . Slashing . | . . . Piercing . | . . . Sneak Attacks 4 | . 4 . Combat Hostiles . | . . . Follow-up Attacks . | . . . Damage Inflicted 1598 | 12 847 739 Guns 281 | 12 246 23 Cannons . | . . . Explosions 1317 | . 601 716 Melee . | . . . Ramming . | . . . Kinetic 281 | 12 246 23 Thermal . | . . . Explosive 1317 | . 601 716 Electromagnetic . | . . . Impact . | . . . Slashing . | . . . Piercing . | . . . Highest Corruption 4 | . . 4 Average Corruption 4 | . . 4 Corruption Purged . | . . . Corruption Blocked . | . . . Overload Shots . | . . . Overflow Damage 47 | . . 47 Projectiles . | . . . Explosions 47 | . . 47 Melee . | . . . Knockbacks . | . . . Impact . | . . . Kinetic . | . . . Secondary . | . . . Self-Inflicted Damage 165 | . 117 48 Shots 8 | . 7 1 Rammed . | . . . Targets Rammed . | . . . Kicked . | . . . Crushed . | . . . Highest Temperature 26 | . 26 24 Average Temperature 9 | . 9 10 Received Heat Transfer 270 | . 168 102 Siege Activations . | . . . Robots Corrupted . | . . . Combat Hostiles . | . . . Parts Fried . | . . . Impact Corruptions . | . . . Robots Melted . | . . . Combat Hostiles . | . . . Parts Melted . | . . . Heat Transferred . | . . . Parts Sabotaged . | . . . Parts Stolen . | . . . Parts Stripped . | . . . Power Chain Reactions . | . . . Alert | -11 -10 -10 ------- Run | Yrd Mat Min Peak Influence 207 | . 207 188 Initial 80 | . . 80 Average 88 | . 93 111 Maximum Alert Level 1 | . 1 . Low Security (%) 89 | 100 83 100 Level 1 10 | . 16 . Level 2 . | . . . Level 3 . | . . . Level 4 . | . . . Level 5 . | . . . High Security . | . . . Max Security . | . . . Squads Dispatched 3 | . 2 1 Investigation 2 | . 1 1 Extermination . | . . . Reinforcement 1 | . 1 . Assault . | . . . Garrison . | . . . Intercept . | . . . Searches Triggered . | . . . Construction Impeded . | . . . Haulers Reinforced . | . . . Active Scanning Responses . | . . . Cargo Convoy Interrupts . | . . . Stealth | -11 -10 -10 --------- Run | Yrd Mat Min Distress Signals . | . . . Communications Jammed . | . . . Distress Signals . | . . . Times Spotted 30 | . 14 16 Peak Tracking Total 9 | . 4 9 Tactical Retreats 1 | . . 1 Traps | -11 -10 -10 ------- Run | Yrd Mat Min Traps Triggered . | . . . Indirectly . | . . . Trap Hack Attempts . | . . . Triggered . | . . . Disarmed . | . . . Reprogrammed . | . . . Reused . | . . . Traps Extracted . | . . . Installed . | . . . Triggered . | . . . Machines | -11 -10 -10 ---------- Run | Yrd Mat Min Machines Disabled 1 | . 1 . Max in Single Turn 1 | . 1 . Machines Repaired . | . . . Machines Dismantled . | . . . Machines Sabotaged . | . . . Overloaded Fab Kills . | . . . Hacking | -11 -10 -10 --------- Run | Yrd Mat Min Machines Accessed 5 | . 4 1 Terminals 2 | . 2 . Fabricators . | . . . Repair Stations 1 | . 1 . Recycling Units 1 | . 1 . Scanalyzers . | . . . Garrison Access . | . . . Total Hacks 11 | . 10 1 Successful 9 | . 8 1 Failed 2 | . 2 . Catastrophic . | . . . Database Lockouts . | . . . Manual . | . . . Terminals 3 | . 3 . Fabricators . | . . . Repair Stations 5 | . 5 . Recycling Units 2 | . 2 . Scanalyzers . | . . . Garrison Access . | . . . Terminal Hacks 3 | . 2 1 Open Door 1 | . . 1 Locate Traps 1 | . 1 . Hauler Manifests 1 | . 1 . Fabricator Hacks . | . . . Repair Station Hacks 4 | . 4 . Scan Component 2 | . 2 . Repair 2 | . 2 . Recycling Unit Hacks 2 | . 2 . Report Inventory 1 | . 1 . Retrieve Components 1 | . 1 . Scanalyzer . | . . . Garrison Access Hacks . | . . . Unauthorized Hacks . | . . . Terminals . | . . . Fabricators . | . . . Repair Stations . | . . . Recycling Units . | . . . Scanalyzers . | . . . Garrison Access . | . . . Data Cores Recovered . | . . . Used . | . . . Hacking Detections 2 | . 2 . Full Trace Events 1 | . 1 . Feedback Events . | . . . Feedback Blocked . | . . . Robot Schematics Acquired . | . . . Robots Built . | . . . Authchips . | . . . Time . | . . . Total Robot Build Rating . | . . . Part Schematics Acquired . | . . . Parts Built . | . . . Authchips . | . . . Time . | . . . Total Part Build Rating . | . . . Parts Repaired 2 | . 2 . Time 52 | . 52 . Parts Recycled . | . . . Recycled Matter . | . . . Retrieved Matter . | . . . Retrieved Components 10 | . 10 . Parts Scanalyzed . | . . . Part Schematics Acquired . | . . . Parts Damaged . | . . . Bothacking | -11 -10 -10 ------------ Run | Yrd Mat Min Used RIF Installer . | . . . Robots Hacked 2 | . 2 . Non-combat 1 | . 1 . Combat 1 | . 1 . Robot Hacks Applied 3 | . 3 . parse_system 2 | . 2 . no_distress 1 | . 1 . Relay Couplers Released . | . . . Fabnet Peak Effective % . | . . . Robots Rewired . | . . . Allies Hacked . | . . . Hacks Repelled . | . . . Allies | -11 -10 -10 -------- Run | Yrd Mat Min Total Allies . | . . . Largest Group . | . . . Highest-Rated Group . | . . . Highest-Rated Ally . | . . . Total Orders . | . . . Ally Attacks . | . . . Total Damage . | . . . Kills . | . . . Allies Corrupted . | . . . Allies Melted . | . . . Intel | -11 -10 -10 ------- Run | Yrd Mat Min Robot Analysis Total . | . . . Derelict Logs Recovered 2 | . . 2 Drone Launches . | . . . Drone Recoveries . | . . . Exploration | -11 -10 -10 ------------- Run | Yrd Mat Min Turns Passed 1145 | 121 716 308 Spaces Moved 796 | 85 497 214 Core 11 | 11 . . Treads . | . . . Legs 785 | 74 497 214 Wheels . | . . . Hover . | . . . Flight . | . . . Fastest Speed 50 | 50 120 120 Average Speed 120 | 110 120 123 Slowest Speed 190 | 120 190 190 Overloaded Moves . | . . . Propulsion Burnouts . | . . . Robots Hopped . | . . . Cave-ins Triggered . | . . . Exploration Rate (%) 40 | 4 71 47 Regions Visited 2 Branch Regions 1 Pre-discovered Areas 2 | . . 2 Known Exits Taken . | . . . Unknown Exits Taken 2 | 1 1 . Scrap Searched . | . . . Spaces Dug . | . . . Terrain Destroyed 117 | . 66 51 Melee . | . . . Projectile . | . . . AOE 117 | . 66 51 Terrain Rammed . | . . . Walls Destroyed . | . . . Machines Disabled . | . . . Actions | -11 -10 -10 --------- Run | Yrd Mat Min Total 926 | 110 567 249 Wait 17 | 6 4 7 Move 794 | 84 496 214 Hop . | . . . Pick Up 33 | 10 16 7 Fast Attach . | . . . Attach 15 | 6 5 4 Detach . | . . . Swap 10 | . 9 1 Drop 14 | 2 7 5 Fire 36 | 2 25 9 Melee 5 | . 5 . Ram . | . . . Kick . | . . . Crush . | . . . Escape Stasis . | . . . Rewire 2 | . . 2 Trap . | . . . Miscellaneous . | . . . Route ------- -11/Scrapyard -10/Materials (discovered 2 exits: [*Mat] / *Min) -10/Mines History --------- Turn | Location | Event 14 | -11/Scrapyard | Discovered new exit (range 16) 122 | -11/Scrapyard | Entered Materials 306 | -10/Materials | Build established: Mutant 639 | -10/Materials | Discovered new exit (range 15) 678 | -10/Materials | Repaired Aluminum Leg 704 | -10/Materials | Repaired Assault Rifle 791 | -10/Materials | Discovered new exit (range 7) 838 | -10/Materials | Entered Mines 845 | -10/Mines | Received a Rocket Launcher from a helpful Derelict 934 | -10/Mines | Learned location of Storage (-7) 959 | -10/Mines | Met a Derelict shopkeep closing up shop 1037 | -10/Mines | Learned location of Zion (-7) 1088 | -10/Mines | Assembled infested the area 1093 | -10/Mines | Assisted by a Guerilla fighting off Assembled 1120 | -10/Mines | Core integrity fell below 50% 1145 | -10/Mines | Core integrity fell below 20% 1146 | -10/Mines | Destroyed by D-53 Grenadier with Mini Grenade Launcher Last Messages --------------- Rocket Launcher severed. Acquired Rocket Launcher. HV Slug penetrates S-10 Pest. S-10 Pest suffers critical hit (Destroy). Acquired Aluminum Leg. Aluminum Leg destroyed. System corrupted by crushing effect (+4). Destroyed Asb. Hover Unit. as-94568 destroyed. Ion Engine destroyed. Destroyed Ion Engine. Rocket Launcher destroyed. Destroyed Rocket Launcher. as-84046 destroyed. T-07 Excavator destroyed. Hardlight Generator destroyed. The unstable cave ceiling collapses. as-75980 destroyed. as-00551 destroyed. The unstable cave ceiling collapses. Map ----- +----------------------------------------------------+ | ??## #?????????????????????????????????????? | | ?## ##????????????????????????????????????? | | ## ##???????????????????????????????????? | | # #??????????????????????????????????? | | ## #?????????????????????????????????? | | ##?# #????????????????????????????????? | | #??? #???????????????????????????????? | | ##???# #??????????????????????????????? | | ###????? ??????????????????????????????? | | ###????? ??????????????????????????????? | | ##????? ????????????????????????????????? | | #????? ??????????????????????????????????? | | #????? ???????????????????????????????????? | | ##????? ???????????????????????????????????? | | ##?????# ???????????????????????????????????? | | # ##?????# ????????????????????????????????????? | | ?###?????# ????????????????????????????????????? | | ????????? ????????????????????????????????????? | | ????????? #?????????????????#?#### ??????????? | | ????????? #???????????????? # %" ???????????? | | ????????? #????????###???? ?#???????????? | | ????????? ????????## ##### * ## #???????????? | | ##???????# ????????## # % #????????????? | | ######??# #??????# # [* [ # #????????????? | | ! #### #????### * # [d #????????????? | | * #????# !r[ @ #????????????? | | #????# ## #?????????????? | | !%### ###?????# # #####?????????????? | | ###?# ##????# # ####?????????????????? | | # ##??## #?? ?## #???????????????????? | | ####??## #?? ??####### ##??????????????????? | | ??????# ##?? ????????## a####???????????????? | | ??????# ##??? ?????????## ##??????????????? | | ##?#### ##???? ??????????## #??????????????? | | !### ###????? ???????????## #??????????????? | | ! =# ##???????$???????????## %#??????????????? | | #???##### ############ #?????????????? | | #### % ????????????? | | */!#X #?### #### ##### #???????????? | | !### #???# #??# #???# #??????????? | | ### ### ###???# #### ##??## #?????????? | | ??# #### ##????# ## #???# #?????????? | | ?## #### ##???# #???## #?????????? | | ## ##?# #???# ## ##???##### #?????????? | | #??# #???# ## == ##???????# #????????? | | ##??## ##??# # # #????????# ???????? | | ###???## ##?# # #?????????# ?????? | | #????### #?# # #?????????? ##????? | | ????## """ #?# # ##??????????? ##?????? | | ????# """ ##?# ## ##????????????####??????? | +----------------------------------------------------+ Best States ------------- Heat Dissipation 39 Energy Generation 10 Energy Capacity 250 Matter Stores 300 Matter Capacity 300 Sight Range 16 Robot Scan Range 14 Terrain Scan Density 10 Evasion (%) 55 Item Schematics ----------------- None Robot Schematics ------------------ None Fabricated ------------ Nothing Alien Tech Used ----------------- None Achievements -------------- Part-time Mechanic Shopping List Challenges ------------ None Game ------ Seed SuperchargedRefineryMallet Manual? 0 Play Time 00:22:41 Cumulative 2.4 hours Start 2024.04.01 @ 19:12:19 End 2024.04.01 @ 19:37:26 Sessions 1 Manual Loads 0 Difficulty Rogue Special Mode None Game No. 4 Rogue 4 Adventurer 0 Explorer 0 Win Type - Total 0 Types 0/0/0/0/0/0/0/0/0 Lore% 0 Gallery% 4 Achievement% 5 Wizard Run 0 Options --------- Layout 1 ASCII 0 Keyboard 0 Movement Arrows Keybinds 0 Fullscreen 1 Font 24/Proggy Map View 50x35 Zoom Use 0% Tactical HUD 0 Map Filters NONE Filters NONE Steam 1 RUN: 5bb2d084-dcca-4543-99f5-6bd1e9ce6033